Workbook

Sheet 资金汇总表
A1: 西岔镇人民政府2025年11月困难群众救助资金汇总表
A2: 填报单位：西岔镇人民政府 | F2: 填报时间:2025年10月22日
A3: 序号 | B3: 救助类别 | E3: 户数 | F3: 人数 | G3: 2025年11月发放金额（元） | H3: 备注
A4: 1 | B4: 农村低保 | D4: 一类 | E4: 86 | F4: 123 | G4: =F4*700 -> 86100
D5: 二类 | E5: 189 | F5: 435 | G5: =F5*630 -> 274050
D6: 三类 | E6: 51 | F6: 208 | G6: =F6*100 -> 20800
D7: 四类 | E7: 1 | F7: 7 | G7: =F7*62 -> 434
D8: 合计 | E8: =SUM(E4:E7) -> 327 | F8: =SUM(F4:F7) -> 773 | G8: =SUM(G4:G7) -> 381384
A9: 2 | B9: 城市低保 | E9: 13 | F9: 21 | G9: 12824
A10: 3 | B10: 农村特困 | E10: 98 | F10: 106 | G10: 126776
A11: 4 | B11: 城市特困 | E11: 1 | F11: 1 | G11: 1196
A12: 5 | B12: 重度残疾人护理补贴 | F12: 517 | G12: 39340
A13: 6 | B13: 困难残疾人生活补贴 | F13: 241 | G13: 26510
A14: 7 | B14: 孤儿 | E14: 1 | F14: 1 | G14: 1253
A15: 8 | B15: 事实无人抚养儿童 | E15: 23 | F15: 30 | G15: 23340
A16: 合计 | G16: =SUM(G8:G15) -> 612623
A17: 备注：2025年9月12日-2025年9月18日在各村公示栏予以公示，公示期间无异议
A18: 负责人： | D18: 分管领导： | F18: 审核人： | G18: 填报人：

Sheet 农村低保
A1: 西岔镇2025年11月农村低保金发放公示表
A2: 公示单位： | H2: 公示时间：2025年10月20日-10月26日
A3: 序号 | B3: 户主姓名 | C3: 住址 | D3: 低保类别 | E3: 享受人数 | F3: 保障标准 | G3: 11月保障 救助金额 | H3: 持卡人姓名 | I3: 备注
A4: =MAX($A$3:A3)+1 -> 1 | B4: 贾衍珍 | C4: 漫湾村 | D4: 二类 | E4: 1 | F4: 630 | G4: =E4*F4 -> 630 | H4: 贾衍珍
A5: =MAX($A$3:A4)+1 -> 2 | B5: 陈庆衍 | C5: 漫湾村 | D5: 三类 | E5: 2 | F5: 100 | G5: 200 | H5: 陈庆衍
A6: =MAX($A$3:A5)+1 -> 3 | B6: 范菊香 | C6: 漫湾村 | D6: 二类 | E6: 1 | F6: 630 | G6: 630 | H6: 范菊香
A7: =MAX($A$3:A6)+1 -> 4 | B7: 赵贵杰 | C7: 漫湾村 | D7: 二类 | E7: 4 | F7: 630 | G7: 2520 | H7: 赵贵杰
A8: =MAX($A$3:A7)+1 -> 5 | B8: 杨小兰 | C8: 漫湾村 | D8: 一类 | E8: 3 | F8: 700 | G8: 2100 | H8: 魏坤晨
A9: =MAX($A$3:A8)+1 -> 6 | B9: 魏万亨 | C9: 漫湾村 | D9: 二类 | E9: 1 | F9: 630 | G9: 630 | H9: 梁桂兰
A10: =MAX($A$3:A9)+1 -> 7 | B10: 龚成永 | C10: 漫湾村 | D10: 一类 | E10: 1 | F10: 700 | G10: 700 | H10: 李玉珍
A11: =MAX($A$3:A10)+1 -> 8 | B11: 肖兰香 | C11: 漫湾村 | D11: 一类 | E11: 1 | F11: 700 | G11: 700 | H11: 肖兰香
A12: =MAX($A$3:A11)+1 -> 9 | B12: 赵银朝 | C12: 漫湾村 | D12: 二类 | E12: 2 | F12: 630 | G12: 1260 | H12: 赵银朝
A13: =MAX($A$3:A12)+1 -> 10 | B13: 王玉萍 | C13: 漫湾村 | D13: 一类 | E13: 2 | F13: 700 | G13: 1400 | H13: 王玉萍
A14: =MAX($A$3:A13)+1 -> 11 | B14: 徐常英 | C14: 漫湾村 | D14: 二类 | E14: 1 | F14: 630 | G14: 630 | H14: 徐常英
A15: 村干部签字： | C15: 监委会意见及签字： | F15: 监委会主任签字： | H15: 镇监督电话：0931-5881227

Sheet 城市低保
A1: 西岔镇2025年11月城市低保金发放公示表
A2: 公示单位： | G2: 公示时间：2025年10月20日-10月26日
A3: 序号 | B3: 姓名 | C3: 类别 | D3: 居住地 | E3: 残疾类别 | F3: 残疾等级 | G3: 享受人数 | H3: 10月共计发放金额 | I3: 持卡人姓名 | J3: 备注
A4: =MAX($A$3:A3)+1 -> 1 | B4: 张玲 | C4: 差额人员 | D4: 漫湾村 | E4: 非残疾 | F4: 非残疾 | G4: 1 | H4: 630 | I4: 赵银朝 | J4: 2024年11月新增
A5: 村干部签字： | D5: 监委会意见及签字： | F5: 监委会主任签字： | I5: 镇监督电话：0931-5881227

Sheet 农村特困
A1: 西岔镇2025年11月份农村特困供养金发放公示表
A2: 公示单位： | H2: 公示时间：2025年10月20日-10月26日
A3: 序号 | B3: 所在镇 （中心社区） | C3: 村（社区） | D3: 供养人姓名 | E3: 享受人数 | F3: 自理能力情况 | G3: 月发放标准/元 | H3: 合计保障金额/元 | I3: 帐户姓名 | J3: 备注
A4: 1 | B4: 西岔镇 | C4: 漫湾村 | D4: 王克钢 | E4: 1 | F4: 全自理 | G4: 1196 | H4: =G4*E4*1*1 -> 1196 | I4: 王克钢
A5: 2 | B5: 西岔镇 | C5: 漫湾村 | D5: 付君海 | E5: 1 | F5: 全自理 | G5: 1196 | H5: =G5*E5*1*1 -> 1196 | I5: 付君海
A6: 3 | B6: 西岔镇 | C6: 漫湾村 | D6: 徐国堂 | E6: 1 | F6: 全自理 | G6: 1196 | H6: =G6*E6*1*1 -> 1196 | I6: 徐国堂
A7: 4 | B7: 西岔镇 | C7: 漫湾村 | D7: 杨生川 | E7: 1 | F7: 全自理 | G7: 1196 | H7: =G7*E7*1*1 -> 1196 | I7: 杨生川
A8: 村干部签字： | E8: 监委会主任签字： | I8: 镇监督电话：0931-5881227

Sheet 重残
A1: 西岔镇2025年11月份重度残疾人护理补贴发放公示表
A2: 公示单位： | E2: 公示时间：2025年10月20日-10月26日
A3: 序号 | B3: 姓名 | C3: 残疾 类别 | D3: 残疾 等级 | E3: 家庭 住址 | F3: 享受低保类别 | G3: 是否享受困难残疾人生活补贴 | H3: 户名 | I3: 11月发放金额 | J3: 备注
A4: 1 | B4: 魏晋环 | C4: 肢体 | D4: 一级 | E4: 漫湾村 | G4: 否 | H4: 杨言楷 | I4: 110
A5: 2 | B5: 李玉英 | C5: 精神 | D5: 二级 | E5: 漫湾村 | G5: 否 | H5: 李玉英 | I5: 110
A6: 3 | B6: 柏秀英 | C6: 精神 | D6: 一级 | E6: 漫湾村 | G6: 否 | H6: 赵贵红 | I6: 110
A7: 4 | B7: 王立霞 | C7: 肢体 | D7: 二级 | E7: 漫湾村 | F7: 农村低保二类 | G7: 是 | H7: 王立霞 | I7: 60
A8: 5 | B8: 白海霞 | C8: 多重 | D8: 二级 | E8: 漫湾村 | G8: 否 | H8: 白海霞 | I8: 60
A9: 6 | B9: 李伟英 | C9: 肢体 | D9: 二级 | E9: 漫湾村 | G9: 否 | H9: 李伟英 | I9: 60
A10: 7 | B10: 王成秀 | C10: 肢体 | D10: 二级 | E10: 漫湾村 | G10: 否 | H10: 王成秀 | I10: 60
A11: 8 | B11: 肖朝翠 | C11: 肢体 | D11: 二级 | E11: 漫湾村 | G11: 否 | H11: 魏成义 | I11: 60
A12: 9 | B12: 赵贵臣 | C12: 肢体 | D12: 二级 | E12: 漫湾村 | G12: 否 | H12: 赵贵臣 | I12: 60
A13: 10 | B13: 赵贵杰 | C13: 肢体 | D13: 二级 | E13: 漫湾村 | F13: 农村低保二类 | G13: 是 | H13: 赵贵杰 | I13: 60
A14: 11 | B14: 曾教堂 | C14: 听力 | D14: 二级 | E14: 漫湾村 | G14: 否 | H14: 曾教堂 | I14: 60
A15: 12 | B15: 魏宏先 | C15: 肢体 | D15: 二级 | E15: 漫湾村 | G15: 否 | H15: 魏成义 | I15: 60
A16: 13 | B16: 杨道湖 | C16: 肢体 | D16: 二级 | E16: 漫湾村 | G16: 否 | H16: 杨道湖 | I16: 60
A17: 14 | B17: 懂满军 | C17: 肢体 | D17: 二级 | E17: 漫湾村 | G17: 否 | H17: 懂满军 | I17: 60
A18: 15 | B18: 徐国范 | C18: 肢体 | D18: 二级 | E18: 漫湾村 | G18: 否 | H18: 徐国范 | I18: 60
A19: 16 | B19: 马立梅 | C19: 视力 | D19: 二级 | E19: 漫湾村 | G19: 否 | H19: 马立梅 | I19: 60
A20: 17 | B20: 张廷香 | C20: 肢体 | D20: 二级 | E20: 漫湾村 | G20: 否 | H20: 张廷香 | I20: 60
A21: 18 | B21: 魏兴君 | C21: 视力 | D21: 二级 | E21: 漫湾村 | G21: 否 | H21: 魏兴君 | I21: 60
A22: 19 | B22: 肖克永 | C22: 肢体 | D22: 二级 | E22: 漫湾村 | G22: 否 | H22: 肖克永 | I22: 60
A23: 20 | B23: 肖梓涵 | C23: 听力 | D23: 二级 | E23: 漫湾村 | G23: 否 | H23: 肖梓涵 | I23: 60
A24: 21 | B24: 白英 | C24: 肢体 | D24: 二级 | E24: 漫湾村 | G24: 否 | H24: 白英 | I24: 60
A25: 22 | B25: 魏万香 | C25: 听力 | D25: 一级 | E25: 漫湾村 | G25: 否 | H25: 魏万香 | I25: 60
A26: 23 | B26: 梁桂兰 | C26: 听力 | D26: 一级 | E26: 漫湾村 | G26: 否 | H26: 梁桂兰 | I26: 60
A27: 24 | B27: 曾莲 | C27: 听力 | D27: 一级 | E27: 漫湾村 | G27: 否 | H27: 魏万均 | I27: 60
A28: 25 | B28: 魏万均 | C28: 听力 | D28: 二级 | E28: 漫湾村 | G28: 否 | H28: 魏万均 | I28: 60
A29: 26 | B29: 肖兰香 | C29: 多重 | D29: 一级 | E29: 漫湾村 | F29: 农村低保 一类 | G29: 是 | H29: 肖兰香 | I29: 110
A30: 27 | B30: 魏至兰 | C30: 多重 | D30: 一级 | E30: 漫湾村 | G30: 否 | H30: 魏至兰 | I30: 110
A31: 28 | B31: 徐常英 | C31: 精神 | D31: 二级 | E31: 漫湾村 | F31: 农村低保二类 | G31: 是 | H31: 徐常英 | I31: 110
A32: 29 | B32: 赵银朝 | C32: 肢体 | D32: 二级 | E32: 漫湾村 | F32: 农村低保二类 | G32: 是 | H32: 赵银朝 | I32: 60
A33: 30 | B33: 杨吉礼 | C33: 听力 | D33: 一级 | E33: 漫湾村 | G33: 否 | H33: 杨吉礼 | I33: 120
A34: 村干部签字： | E34: 监委会主任电话： | H34: 镇监督电话：0931-5881227

Sheet 困残
A1: 西岔镇2025年11月份困难残疾人护理补贴发放公示表
A2: 公示单位： | E2: 公示时间：2025年10月20日-10月26日
A3: 序号 | B3: 姓名 | C3: 残疾 类别 | D3: 残疾 等级 | E3: 家庭 住址 | F3: 享受低 保类别 | G3: 是否享受重度残疾人护理补贴 | H3: 户名 | I3: 11月发 放金额 | J3: 备注
A4: 1 | B4: 赵贵杰 | C4: 肢体 | D4: 二级 | E4: 漫湾村 | F4: 农村低保二类 | G4: 是 | H4: 赵贵杰 | I4: 110
A5: 2 | B5: 魏万亨 | C5: 多重 | D5: 三级 | E5: 漫湾村 | F5: 农村低保二类 | G5: 否 | H5: 梁桂兰 | I5: 110
A6: 3 | B6: 肖兰香 | C6: 多重 | D6: 一级 | E6: 漫湾村 | F6: 农村低保一类 | G6: 是 | H6: 肖兰香 | I6: 110
A7: 4 | B7: 赵银朝 | C7: 肢体 | D7: 二级 | E7: 漫湾村 | F7: 农村低保二类 | G7: 是 | H7: 赵银朝 | I7: 110
A8: 5 | B8: 徐常英 | C8: 精神 | D8: 二级 | E8: 漫湾村 | F8: 农村低保二类 | G8: 是 | H8: 徐常英 | I8: 110
A9: 村干部签字： | E9: 监委会主任电话： | H9: 镇监督电话：0931-5881227
